[Event "*** Titled Tuesday Blitz"]
[Site "Chess.com"]
[Date "2020.04.21"]
[Round "1"]
[White "JakubPulpan"]
[Black "ahachess"]
[Result "1-0"]
[WhiteElo "2706"]
[BlackElo "2369"]
[TimeControl "180+1"]
[EndTime "10:10:03 PDT"]
[Termination "JakubPulpan won on time"]

1. e4 {[%clk 0:02:57.1]} 1... c5 {[%clk 0:02:45.3]} 2. Nf3 {[%clk 0:02:52.7]}
2... d6 {[%clk 0:02:45]} 3. d4 {[%clk 0:02:48.8]} 3... cxd4 {[%clk 0:02:45.9]}
4. Nxd4 {[%clk 0:02:49.5]} 4... Nf6 {[%clk 0:02:46.3]} 5. Nc3 {[%clk 0:02:49.8]}
5... g6 {[%clk 0:02:46.6]} 6. Be3 {[%clk 0:02:49.7]} 6... Bg7 {[%clk 0:02:46.9]}
7. f3 {[%clk 0:02:50]} 7... h5 {[%clk 0:02:46.5]} 8. Qd2 {[%clk 0:02:48]} 8...
a6 {[%clk 0:02:46.3]} 9. Bc4 {[%clk 0:02:32.2]} 9... Qc7 {[%clk 0:02:40.2]} 10.
Bb3 {[%clk 0:02:31]} 10... Nbd7 {[%clk 0:02:33.5]} 11. Nd5 {[%clk 0:02:22.1]}
11... Nxd5 {[%clk 0:02:28]} 12. Bxd5 {[%clk 0:02:23]} 12... Nf6 {[%clk
0:02:23.1]} 13. Bb3 {[%clk 0:02:17.1]} 13... b5 {[%clk 0:02:21.4]} 14. a4 {[%clk
0:02:17]} 14... bxa4 {[%clk 0:02:12.2]} 15. Bxa4+ {[%clk 0:02:14]} 15... Bd7
{[%clk 0:02:11.8]} 16. O-O {[%clk 0:02:11.4]} 16... O-O {[%clk 0:02:10.3]} 17.
Bxd7 {[%clk 0:02:04]} 17... Nxd7 {[%clk 0:02:09.8]} 18. Bh6 {[%clk 0:01:53.7]}
18... Bxh6 {[%clk 0:02:04.3]} 19. Qxh6 {[%clk 0:01:54.6]} 19... Qb6 {[%clk
0:01:57.8]} 20. Qe3 {[%clk 0:01:48.7]} 20... Rfb8 {[%clk 0:01:47.9]} 21. Qf2
{[%clk 0:01:03]} 21... Rc8 {[%clk 0:01:30.3]} 22. Nb3 {[%clk 0:00:52.4]} 22...
Rxc2 {[%clk 0:01:20.6]} 23. Qxb6 {[%clk 0:00:50.8]} 23... Nxb6 {[%clk
0:01:19.6]} 24. Rf2 {[%clk 0:00:50.8]} 24... Rxf2 {[%clk 0:01:13]} 25. Kxf2
{[%clk 0:00:51.7]} 25... Nc4 {[%clk 0:01:12.9]} 26. Na5 {[%clk 0:00:31.3]} 26...
Nxa5 {[%clk 0:00:59.3]} 27. Rxa5 {[%clk 0:00:31.1]} 27... Rb8 {[%clk 0:00:58.1]}
28. Rxa6 {[%clk 0:00:31.4]} 28... Rxb2+ {[%clk 0:00:57.9]} 29. Kg3 {[%clk
0:00:32.3]} 29... Kg7 {[%clk 0:00:57.9]} 30. h4 {[%clk 0:00:32.2]} 30... Rd2
{[%clk 0:00:53.3]} 31. Ra7 {[%clk 0:00:28.6]} 31... Kf6 {[%clk 0:00:52.4]} 32.
Rd7 {[%clk 0:00:29]} 32... Ke6 {[%clk 0:00:49.6]} 33. Rd8 {[%clk 0:00:27.8]}
33... d5 {[%clk 0:00:44.1]} 34. exd5+ {[%clk 0:00:27.9]} 34... Rxd5 {[%clk
0:00:43.8]} 35. Ra8 {[%clk 0:00:28.8]} 35... Kf6 {[%clk 0:00:43.5]} 36. Ra6+
{[%clk 0:00:28.8]} 36... Rd6 {[%clk 0:00:42.3]} 37. Ra7 {[%clk 0:00:29.7]} 37...
e5 {[%clk 0:00:39.5]} 38. Ra2 {[%clk 0:00:29.6]} 38... Ke6 {[%clk 0:00:38.9]}
39. Ra8 {[%clk 0:00:29.2]} 39... f5 {[%clk 0:00:38.2]} 40. Re8+ {[%clk
0:00:29.3]} 40... Kf6 {[%clk 0:00:37.5]} 41. Rb8 {[%clk 0:00:30.2]} 41... f4+
{[%clk 0:00:34.3]} 42. Kh2 {[%clk 0:00:22.9]} 42... Rd2 {[%clk 0:00:33.8]} 43.
Kh3 {[%clk 0:00:20.7]} 43... Rd1 {[%clk 0:00:30.5]} 44. Kh2 {[%clk 0:00:20.7]}
44... Kg7 {[%clk 0:00:28.6]} 45. Rb7+ {[%clk 0:00:20.6]} 45... Kf6 {[%clk
0:00:26.2]} 46. Rb8 {[%clk 0:00:21]} 46... Re1 {[%clk 0:00:25.5]} 47. Rf8+
{[%clk 0:00:20.5]} 47... Kg7 {[%clk 0:00:25.3]} 48. Re8 {[%clk 0:00:20.5]} 48...
Kf7 {[%clk 0:00:25.4]} 49. Ra8 {[%clk 0:00:20.6]} 49... Kf6 {[%clk 0:00:22.4]}
50. Rf8+ {[%clk 0:00:19.6]} 50... Kg7 {[%clk 0:00:21.8]} 51. Rc8 {[%clk
0:00:20.1]} 51... e4 {[%clk 0:00:18.8]} 52. fxe4 {[%clk 0:00:20]} 52... Rxe4
{[%clk 0:00:17.2]} 53. Rc7+ {[%clk 0:00:20.2]} 53... Kf6 {[%clk 0:00:15.5]} 54.
Rc6+ {[%clk 0:00:20.5]} 54... Kf5 {[%clk 0:00:07.1]} 55. Rc5+ {[%clk 0:00:20.6]}
55... Kf6 {[%clk 0:00:06.7]} 56. Rc6+ {[%clk 0:00:18.4]} 56... Kf5 {[%clk
0:00:07.2]} 57. Kh3 {[%clk 0:00:17.8]} 57... Re3+ {[%clk 0:00:06.4]} 58. Kh2
{[%clk 0:00:18.2]} 58... Re1 {[%clk 0:00:05.7]} 59. Rc5+ {[%clk 0:00:17.5]}
59... Kf6 {[%clk 0:00:05.9]} 60. Rc4 {[%clk 0:00:17.6]} 60... Kf5 {[%clk
0:00:05.8]} 61. Rc5+ {[%clk 0:00:18]} 61... Re5 {[%clk 0:00:03.4]} 62. Rc8
{[%clk 0:00:18.2]} 62... Kf6 {[%clk 0:00:03.6]} 63. Rf8+ {[%clk 0:00:18.2]}
63... Kg7 {[%clk 0:00:04.1]} 64. Rxf4 {[%clk 0:00:19]} 64... g5 {[%clk
0:00:04.2]} 65. Ra4 {[%clk 0:00:17.8]} 65... gxh4 {[%clk 0:00:03.8]} 66. Kh3
{[%clk 0:00:18.6]} 66... Kg6 {[%clk 0:00:04.7]} 67. Kxh4 {[%clk 0:00:19.3]}
67... Re6 {[%clk 0:00:04.5]} 68. g3 {[%clk 0:00:19.7]} 68... Re5 {[%clk
0:00:04.6]} 69. Ra6+ {[%clk 0:00:19.9]} 69... Kg7 {[%clk 0:00:04.7]} 70. Rd6
{[%clk 0:00:20.1]} 70... Kh7 {[%clk 0:00:04.7]} 71. Rf6 {[%clk 0:00:19.3]} 71...
Kg7 {[%clk 0:00:05.4]} 72. Rb6 {[%clk 0:00:19.3]} 72... Kh7 {[%clk 0:00:05.9]}
73. Kh3 {[%clk 0:00:20]} 73... Kg7 {[%clk 0:00:05.7]} 74. Kg2 {[%clk 0:00:20.7]}
74... Kh7 {[%clk 0:00:06.1]} 75. Kf3 {[%clk 0:00:21.3]} 75... Rd5 {[%clk
0:00:02.5]} 76. Kf4 {[%clk 0:00:21.4]} 76... Rc5 {[%clk 0:00:02.5]} 77. Rf6
{[%clk 0:00:21.2]} 77... Kg7 {[%clk 0:00:03.1]} 78. Rf5 {[%clk 0:00:19.6]} 1-0

[Event "*** Titled Tuesday Blitz"]
[Site "Chess.com"]
[Date "2020.04.21"]
[Round "2"]
[White "raviteja81293"]
[Black "Mfcyryd"]
[Result "1-0"]
[WhiteElo "2785"]
[BlackElo "2540"]
[TimeControl "180+1"]
[EndTime "10:12:06 PDT"]
[Termination "raviteja81293 won by resignation"]

1. d4 {[%clk 0:03:00.5]} 1... Nf6 {[%clk 0:02:59.6]} 2. Nf3 {[%clk 0:03:00.5]}
2... e6 {[%clk 0:02:59.6]} 3. e3 {[%clk 0:03:00.5]} 3... b6 {[%clk 0:02:59.6]}
4. Bd3 {[%clk 0:03:01]} 4... Bb7 {[%clk 0:03:00.5]} 5. O-O {[%clk 0:03:01.9]}
5... c5 {[%clk 0:03:00.1]} 6. c4 {[%clk 0:03:02.3]} 6... cxd4 {[%clk 0:02:59.1]}
7. exd4 {[%clk 0:03:03.2]} 7... d5 {[%clk 0:02:59.3]} 8. Nc3 {[%clk 0:03:03.6]}
8... Be7 {[%clk 0:02:59.3]} 9. cxd5 {[%clk 0:03:03.9]} 9... Nxd5 {[%clk
0:02:59.1]} 10. Ne5 {[%clk 0:03:04.6]} 10... O-O {[%clk 0:02:58.7]} 11. Qg4
{[%clk 0:03:04.5]} 11... Nxc3 {[%clk 0:02:55.2]} 12. bxc3 {[%clk 0:03:05.4]}
12... Nc6 {[%clk 0:02:55.3]} 13. Bh6 {[%clk 0:02:57.4]} 13... Bf6 {[%clk
0:02:54.2]} 14. Qe4 {[%clk 0:02:57.3]} 14... g6 {[%clk 0:02:41.3]} 15. Nxc6
{[%clk 0:02:41.8]} 15... Qe8 {[%clk 0:02:39.4]} 16. d5 {[%clk 0:02:34.6]} 1-0

[Event "*** Titled Tuesday Blitz"]
[Site "Chess.com"]
[Date "2020.04.21"]
[Round "2"]
[White "Schachmalanders"]
[Black "Sanan_Sjugirov"]
[Result "0-1"]
[WhiteElo "2354"]
[BlackElo "2842"]
[TimeControl "180+1"]
[EndTime "10:12:37 PDT"]
[Termination "Sanan_Sjugirov won by resignation"]

1. e4 {[%clk 0:03:00.9]} 1... c5 {[%clk 0:02:59.7]} 2. Nc3 {[%clk 0:02:59.2]}
2... d6 {[%clk 0:03:00.6]} 3. g3 {[%clk 0:02:59.3]} 3... g6 {[%clk 0:03:00.5]}
4. Bg2 {[%clk 0:02:59.7]} 4... Bg7 {[%clk 0:03:00.9]} 5. Nge2 {[%clk 0:03:00.6]}
5... Nc6 {[%clk 0:03:01.6]} 6. d3 {[%clk 0:03:00.8]} 6... Rb8 {[%clk 0:03:01.5]}
7. Be3 {[%clk 0:03:00.7]} 7... b5 {[%clk 0:03:01.9]} 8. Qd2 {[%clk 0:02:59.1]}
8... b4 {[%clk 0:03:02.2]} 9. Nd1 {[%clk 0:02:59.4]} 9... e6 {[%clk 0:03:01.4]}
10. O-O {[%clk 0:02:59.3]} 10... Nge7 {[%clk 0:03:01.6]} 11. Bh6 {[%clk
0:02:59.3]} 11... O-O {[%clk 0:03:01.6]} 12. Bxg7 {[%clk 0:02:59.2]} 12... Kxg7
{[%clk 0:03:02.5]} 13. Ne3 {[%clk 0:02:59.2]} 13... a5 {[%clk 0:03:01.9]} 14. f4
{[%clk 0:02:59.3]} 14... f5 {[%clk 0:03:02]} 15. d4 {[%clk 0:02:52.9]} 15... Ba6
{[%clk 0:03:00.6]} 16. d5 {[%clk 0:02:44.4]} 16... exd5 {[%clk 0:02:57.8]} 17.
exf5 {[%clk 0:02:31.5]} 17... d4 {[%clk 0:02:53.5]} 18. Nd5 {[%clk 0:02:18.7]}
18... Nxd5 {[%clk 0:02:51.8]} 19. Bxd5 {[%clk 0:02:18.9]} 19... Ne7 {[%clk
0:02:52.4]} 20. Bf3 {[%clk 0:02:15.6]} 20... Nxf5 {[%clk 0:02:52.4]} 21. Rfe1
{[%clk 0:02:14.9]} 21... Qf6 {[%clk 0:02:51.5]} 22. Rad1 {[%clk 0:02:03.2]}
22... Rbe8 {[%clk 0:02:51.3]} 23. Kg2 {[%clk 0:01:59]} 23... Ne3+ {[%clk
0:02:51.5]} 0-1

[Event "*** Titled Tuesday Blitz"]
[Site "Chess.com"]
[Date "2020.04.21"]
[Round "2"]
[White "adriangschnitzer"]
[Black "pawnwonder"]
[Result "1-0"]
[WhiteElo "2427"]
[BlackElo "2164"]
[TimeControl "180+1"]
[EndTime "10:13:13 PDT"]
[Termination "adriangschnitzer won by resignation"]

1. e4 {[%clk 0:03:00.9]} 1... c5 {[%clk 0:02:59.8]} 2. Nf3 {[%clk 0:03:00]} 2...
Nc6 {[%clk 0:02:52.3]} 3. d4 {[%clk 0:02:59.7]} 3... cxd4 {[%clk 0:02:51.1]} 4.
Nxd4 {[%clk 0:03:00.6]} 4... g6 {[%clk 0:02:51.2]} 5. c4 {[%clk 0:02:59.9]} 5...
Bg7 {[%clk 0:02:51]} 6. Be3 {[%clk 0:02:59.3]} 6... Nf6 {[%clk 0:02:51.1]} 7.
Nc3 {[%clk 0:02:58.1]} 7... O-O {[%clk 0:02:49.3]} 8. Be2 {[%clk 0:02:57.6]}
8... d6 {[%clk 0:02:49.3]} 9. O-O {[%clk 0:02:56.1]} 9... Bd7 {[%clk 0:02:49.8]}
10. h3 {[%clk 0:02:55.6]} 10... Nxd4 {[%clk 0:02:49]} 11. Bxd4 {[%clk
0:02:55.2]} 11... Bc6 {[%clk 0:02:49.9]} 12. Qc2 {[%clk 0:02:55.3]} 12... Rc8
{[%clk 0:02:34.1]} 13. Rad1 {[%clk 0:02:53.5]} 13... a6 {[%clk 0:02:24.1]} 14.
b3 {[%clk 0:02:37.9]} 14... b5 {[%clk 0:02:21.9]} 15. c5 {[%clk 0:02:37.9]}
15... dxc5 {[%clk 0:02:18]} 16. Bxf6 {[%clk 0:02:36.2]} 16... Qc7 {[%clk
0:02:06.5]} 17. Bxg7 {[%clk 0:02:32.9]} 17... Kxg7 {[%clk 0:02:07.4]} 18. Nd5
{[%clk 0:02:27.7]} 18... Bxd5 {[%clk 0:02:07.3]} 19. Rxd5 {[%clk 0:02:21.3]}
19... e6 {[%clk 0:02:07]} 20. Rd2 {[%clk 0:02:15.4]} 20... h5 {[%clk 0:02:01.2]}
21. Rfd1 {[%clk 0:02:15]} 1-0

[Event "*** Titled Tuesday Blitz"]
[Site "Chess.com"]
[Date "2020.04.21"]
[Round "2"]
[White "Triumphmate"]
[Black "amintabatabaei"]
[Result "0-1"]
[WhiteElo "2574"]
[BlackElo "2832"]
[TimeControl "180+1"]
[EndTime "10:13:29 PDT"]
[Termination "amintabatabaei won by resignation"]

1. e4 {[%clk 0:03:00.9]} 1... c5 {[%clk 0:02:52]} 2. Nf3 {[%clk 0:02:41.1]} 2...
d6 {[%clk 0:02:51.4]} 3. d4 {[%clk 0:02:42]} 3... cxd4 {[%clk 0:02:52.3]} 4.
Nxd4 {[%clk 0:02:42.9]} 4... Nf6 {[%clk 0:02:53]} 5. Nc3 {[%clk 0:02:43.1]} 5...
Nc6 {[%clk 0:02:53.7]} 6. f4 {[%clk 0:02:43.6]} 6... g6 {[%clk 0:02:41.6]} 7.
Nf3 {[%clk 0:02:44.5]} 7... Bg7 {[%clk 0:02:41.5]} 8. Bd3 {[%clk 0:02:45.4]}
8... O-O {[%clk 0:02:41.7]} 9. O-O {[%clk 0:02:44.1]} 9... Bg4 {[%clk
0:02:41.2]} 10. Qe1 {[%clk 0:02:41.6]} 10... Nb4 {[%clk 0:02:37.6]} 11. a3
{[%clk 0:02:38.7]} 11... Nxd3 {[%clk 0:02:35.5]} 12. cxd3 {[%clk 0:02:39.6]}
12... Rc8 {[%clk 0:02:34.4]} 13. Bd2 {[%clk 0:02:38.2]} 13... Qb6+ {[%clk
0:02:30.6]} 14. Kh1 {[%clk 0:02:35.8]} 14... Qxb2 {[%clk 0:02:30.5]} 15. Rb1
{[%clk 0:02:33.4]} 15... Qc2 {[%clk 0:01:47.9]} 16. Qe3 {[%clk 0:02:31.5]} 16...
Rxc3 {[%clk 0:01:32.8]} 17. Rfc1 {[%clk 0:02:21.5]} 17... Qxd3 {[%clk
0:01:32.8]} 0-1

[Event "*** Titled Tuesday Blitz"]
[Site "Chess.com"]
[Date "2020.04.21"]
[Round "2"]
[White "mitraasz"]
[Black "Glidzhian_Gor"]
[Result "0-1"]
[WhiteElo "2210"]
[BlackElo "2441"]
[TimeControl "180+1"]
[EndTime "10:13:30 PDT"]
[Termination "Glidzhian_Gor won by resignation"]

1. d4 {[%clk 0:03:00.9]} 1... Nf6 {[%clk 0:02:59.7]} 2. Nf3 {[%clk 0:03:01.3]}
2... e6 {[%clk 0:02:59.2]} 3. e3 {[%clk 0:03:00.9]} 3... b6 {[%clk 0:02:59.7]}
4. Bd3 {[%clk 0:03:01]} 4... Bb7 {[%clk 0:03:00.4]} 5. O-O {[%clk 0:03:01.7]}
5... Be7 {[%clk 0:03:01.1]} 6. c4 {[%clk 0:03:01.8]} 6... O-O {[%clk 0:03:01.8]}
7. Nc3 {[%clk 0:03:01.6]} 7... c5 {[%clk 0:03:02.3]} 8. d5 {[%clk 0:03:01.6]}
8... exd5 {[%clk 0:02:59.3]} 9. cxd5 {[%clk 0:03:02.3]} 9... d6 {[%clk
0:02:59.8]} 10. e4 {[%clk 0:03:01.9]} 10... Re8 {[%clk 0:03:00.3]} 11. h3 {[%clk
0:02:59.8]} 11... Bf8 {[%clk 0:03:00.1]} 12. Bf4 {[%clk 0:03:00.2]} 12... Nbd7
{[%clk 0:03:00.1]} 13. Bh2 {[%clk 0:03:00.1]} 13... Ne5 {[%clk 0:03:00.4]} 14.
Nxe5 {[%clk 0:02:59]} 14... dxe5 {[%clk 0:03:01.3]} 15. f4 {[%clk 0:02:59]}
15... Nd7 {[%clk 0:02:55.4]} 16. f5 {[%clk 0:02:55.4]} 16... a6 {[%clk
0:02:49.9]} 17. g4 {[%clk 0:02:54.3]} 17... b5 {[%clk 0:02:49.4]} 18. Kh1 {[%clk
0:02:51]} 18... c4 {[%clk 0:02:49.7]} 19. Bc2 {[%clk 0:02:46]} 19... b4 {[%clk
0:02:48.9]} 20. Ne2 {[%clk 0:02:44.6]} 20... Nc5 {[%clk 0:02:48]} 21. Rg1 {[%clk
0:02:42.4]} 21... b3 {[%clk 0:02:48]} 22. axb3 {[%clk 0:02:39.8]} 22... cxb3
{[%clk 0:02:48.8]} 23. Bb1 {[%clk 0:02:39.7]} 23... a5 {[%clk 0:02:48.3]} 24. g5
{[%clk 0:02:38.3]} 24... a4 {[%clk 0:02:47.4]} 25. g6 {[%clk 0:02:34.9]} 25...
fxg6 {[%clk 0:02:46.2]} 26. fxg6 {[%clk 0:02:35.6]} 26... h6 {[%clk 0:02:46.8]}
27. Qf1 {[%clk 0:02:29]} 27... Qd7 {[%clk 0:02:37.3]} 28. Nc3 {[%clk 0:02:16.6]}
28... Bd6 {[%clk 0:02:35.6]} 29. Nb5 {[%clk 0:02:14.5]} 29... Rf8 {[%clk
0:02:29]} 30. Qe2 {[%clk 0:02:05.1]} 30... Ba6 {[%clk 0:02:28.4]} 0-1

[Event "*** Titled Tuesday Blitz"]
[Site "Chess.com"]
[Date "2020.04.21"]
[Round "2"]
[White "vladimirdamjanovic"]
[Black "Chessdemon2019"]
[Result "1-0"]
[WhiteElo "2627"]
[BlackElo "2151"]
[TimeControl "180+1"]
[EndTime "10:13:35 PDT"]
[Termination "vladimirdamjanovic won by checkmate"]

1. d4 {[%clk 0:03:00.9]} 1... Nf6 {[%clk 0:02:59.9]} 2. c4 {[%clk 0:02:59.1]}
2... e6 {[%clk 0:03:00.2]} 3. Nc3 {[%clk 0:02:57.6]} 3... Bb4 {[%clk 0:03:00]}
4. f3 {[%clk 0:02:57.5]} 4... b6 {[%clk 0:02:58.3]} 5. e4 {[%clk 0:02:45]} 5...
Bxc3+ {[%clk 0:02:56.6]} 6. bxc3 {[%clk 0:02:44.3]} 6... d6 {[%clk 0:02:56.4]}
7. Bd3 {[%clk 0:02:40.7]} 7... c5 {[%clk 0:02:54.5]} 8. Ne2 {[%clk 0:02:41.6]}
8... Nc6 {[%clk 0:02:54.1]} 9. O-O {[%clk 0:02:39.8]} 9... O-O {[%clk
0:02:53.4]} 10. Be3 {[%clk 0:02:38.1]} 10... e5 {[%clk 0:02:52]} 11. d5 {[%clk
0:02:37]} 11... Na5 {[%clk 0:02:52.2]} 12. Ng3 {[%clk 0:02:36]} 12... Ba6 {[%clk
0:02:52.2]} 13. Qe2 {[%clk 0:02:34.5]} 13... Qd7 {[%clk 0:02:52.4]} 14. Nf5
{[%clk 0:02:29.3]} 14... g6 {[%clk 0:02:49.7]} 15. Nh6+ {[%clk 0:02:18.9]} 15...
Kg7 {[%clk 0:02:49.7]} 16. f4 {[%clk 0:02:19.8]} 16... exf4 {[%clk 0:02:42.8]}
17. Rxf4 {[%clk 0:02:20.7]} 17... Nh5 {[%clk 0:02:40.6]} 18. Rh4 {[%clk
0:02:08.5]} 18... Rae8 {[%clk 0:02:26.1]} 19. Rf1 {[%clk 0:01:57.4]} 19... Re5
{[%clk 0:02:21.6]} 20. g4 {[%clk 0:01:53]} 20... Nf6 {[%clk 0:02:20.9]} 21. g5
{[%clk 0:01:51.4]} 21... Nh5 {[%clk 0:02:19.9]} 22. Rxh5 {[%clk 0:01:50.6]}
22... gxh5 {[%clk 0:02:20.1]} 23. Nf5+ {[%clk 0:01:50.9]} 23... Kh8 {[%clk
0:02:13.3]} 24. Qxh5 {[%clk 0:01:48.7]} 24... Bxc4 {[%clk 0:02:11.6]} 25. Qh6
{[%clk 0:01:45.3]} 25... f6 {[%clk 0:02:09.1]} 26. Qxf8# {[%clk 0:01:43.9]} 1-0

[Event "*** Titled Tuesday Blitz"]
[Site "Chess.com"]
[Date "2020.04.21"]
[Round "2"]
[White "Vamostodorecto"]
[Black "svilson23"]
[Result "1-0"]
[WhiteElo "2477"]
[BlackElo "2257"]
[TimeControl "180+1"]
[EndTime "10:13:42 PDT"]
[Termination "Vamostodorecto won by resignation"]

1. d4 {[%clk 0:03:00.9]} 1... d5 {[%clk 0:02:59.6]} 2. c4 {[%clk 0:03:00.9]}
2... e6 {[%clk 0:02:59.8]} 3. Nc3 {[%clk 0:03:00.5]} 3... f5 {[%clk 0:02:57.4]}
4. cxd5 {[%clk 0:02:59.5]} 4... exd5 {[%clk 0:02:56.7]} 5. e4 {[%clk 0:03:00.2]}
5... dxe4 {[%clk 0:02:49.6]} 6. Bc4 {[%clk 0:03:00.1]} 6... Nf6 {[%clk
0:02:47.1]} 7. Qb3 {[%clk 0:02:59.5]} 7... Qe7 {[%clk 0:02:38.2]} 8. Nh3 {[%clk
0:02:58.6]} 8... Nc6 {[%clk 0:02:18.4]} 9. Ng5 {[%clk 0:02:58]} 9... Na5 {[%clk
0:02:13.9]} 10. Qb5+ {[%clk 0:02:56.9]} 10... Nc6 {[%clk 0:02:09.8]} 11. d5
{[%clk 0:02:34.7]} 11... a6 {[%clk 0:02:09.1]} 12. Qa4 {[%clk 0:02:31.4]} 12...
b5 {[%clk 0:01:06.9]} 13. Bxb5 {[%clk 0:02:26]} 13... axb5 {[%clk 0:01:02.4]}
14. Qxa8 {[%clk 0:02:24.6]} 1-0

[Event "*** Titled Tuesday Blitz"]
[Site "Chess.com"]
[Date "2020.04.21"]
[Round "2"]
[White "Keaton87"]
[Black "kingnb"]
[Result "1-0"]
[WhiteElo "2678"]
[BlackElo "2441"]
[TimeControl "180+1"]
[EndTime "10:13:44 PDT"]
[Termination "Keaton87 won by resignation"]

1. d4 {[%clk 0:03:00.9]} 1... d6 {[%clk 0:02:58.7]} 2. e4 {[%clk 0:03:00.3]}
2... Nf6 {[%clk 0:02:57.6]} 3. Nc3 {[%clk 0:02:59.9]} 3... g6 {[%clk 0:02:57.9]}
4. f4 {[%clk 0:02:58.3]} 4... Bg7 {[%clk 0:02:58.1]} 5. Nf3 {[%clk 0:02:58.6]}
5... c5 {[%clk 0:02:58.3]} 6. dxc5 {[%clk 0:02:57.2]} 6... Qa5 {[%clk
0:02:57.8]} 7. Bd3 {[%clk 0:02:57.8]} 7... Qxc5 {[%clk 0:02:56.7]} 8. Qe2 {[%clk
0:02:58.2]} 8... Nc6 {[%clk 0:02:55.8]} 9. Be3 {[%clk 0:02:58.3]} 9... Qa5
{[%clk 0:02:56.4]} 10. O-O {[%clk 0:02:58.5]} 10... O-O {[%clk 0:02:56.5]} 11.
a3 {[%clk 0:02:58.1]} 11... Bg4 {[%clk 0:02:53.8]} 12. h3 {[%clk 0:02:56.4]}
12... Bxf3 {[%clk 0:02:53.1]} 13. Qxf3 {[%clk 0:02:57.3]} 13... Rfc8 {[%clk
0:02:52.2]} 14. b4 {[%clk 0:02:54.9]} 14... Qd8 {[%clk 0:02:50.9]} 15. Rad1
{[%clk 0:02:51.4]} 15... Qe8 {[%clk 0:02:13.7]} 16. Nd5 {[%clk 0:02:49.6]} 16...
Nxd5 {[%clk 0:02:12.8]} 17. exd5 {[%clk 0:02:49.8]} 17... Nb8 {[%clk 0:02:12]}
18. c4 {[%clk 0:02:48]} 18... Nd7 {[%clk 0:02:12.2]} 19. Kh1 {[%clk 0:02:45.7]}
19... a5 {[%clk 0:02:11]} 20. Qf2 {[%clk 0:02:36]} 20... axb4 {[%clk 0:02:07.5]}
21. axb4 {[%clk 0:02:36.9]} 21... Ra4 {[%clk 0:02:07.6]} 22. Qd2 {[%clk
0:02:33.1]} 22... Rca8 {[%clk 0:02:06.3]} 23. Rc1 {[%clk 0:02:29.1]} 23... b6
{[%clk 0:01:59.4]} 24. Rc2 {[%clk 0:02:23.4]} 24... Qb8 {[%clk 0:01:48.9]} 25.
Be2 {[%clk 0:02:20.4]} 25... Ra2 {[%clk 0:01:45.7]} 26. Rxa2 {[%clk 0:02:18.2]}
1-0

[Event "*** Titled Tuesday Blitz"]
[Site "Chess.com"]
[Date "2020.04.21"]
[Round "2"]
[White "Yaacovn"]
[Black "fm_magua"]
[Result "1-0"]
[WhiteElo "2818"]
[BlackElo "2563"]
[TimeControl "180+1"]
[EndTime "10:13:47 PDT"]
[Termination "Yaacovn won by resignation"]

1. d4 {[%clk 0:03:00]} 1... Nf6 {[%clk 0:02:59.7]} 2. Nf3 {[%clk 0:02:59.9]}
2... g6 {[%clk 0:03:00.2]} 3. e3 {[%clk 0:02:59.4]} 3... Bg7 {[%clk 0:03:00.8]}
4. Be2 {[%clk 0:02:59.5]} 4... d6 {[%clk 0:03:01.2]} 5. O-O {[%clk 0:02:59.8]}
5... O-O {[%clk 0:03:01.9]} 6. b3 {[%clk 0:03:00.3]} 6... c5 {[%clk 0:02:58.6]}
7. Bb2 {[%clk 0:03:00.5]} 7... cxd4 {[%clk 0:02:58.9]} 8. Nxd4 {[%clk
0:03:00.6]} 8... Nc6 {[%clk 0:02:58.8]} 9. c4 {[%clk 0:03:00.7]} 9... Nxd4
{[%clk 0:02:58.3]} 10. Bxd4 {[%clk 0:03:00.5]} 10... b6 {[%clk 0:02:57.6]} 11.
Bf3 {[%clk 0:03:00.1]} 11... Rb8 {[%clk 0:02:57.9]} 12. Qd2 {[%clk 0:02:57.1]}
12... Bb7 {[%clk 0:02:58]} 13. Bxb7 {[%clk 0:02:54.7]} 13... Rxb7 {[%clk
0:02:58]} 14. Rd1 {[%clk 0:02:53.4]} 14... Rd7 {[%clk 0:02:57.8]} 15. Qb2 {[%clk
0:02:51.2]} 15... d5 {[%clk 0:02:56.9]} 16. cxd5 {[%clk 0:02:37.4]} 16... Rxd5
{[%clk 0:02:56.2]} 17. Nc3 {[%clk 0:02:37.3]} 17... Rd7 {[%clk 0:02:54.8]} 18.
h3 {[%clk 0:02:27.2]} 18... Re8 {[%clk 0:02:45]} 19. Be5 {[%clk 0:02:22]} 19...
Rxd1+ {[%clk 0:02:38.5]} 20. Rxd1 {[%clk 0:02:21.5]} 20... Qc8 {[%clk
0:02:37.1]} 21. Nd5 {[%clk 0:02:17.7]} 21... Nxd5 {[%clk 0:02:26]} 22. Bxg7
{[%clk 0:02:16.3]} 22... Qe6 {[%clk 0:02:24.8]} 23. Bh6 {[%clk 0:02:06.6]} 23...
f6 {[%clk 0:02:15.5]} 24. Qd4 {[%clk 0:02:04.6]} 24... Nc7 {[%clk 0:02:10.4]}
25. Qd7 {[%clk 0:01:57.3]} 25... Rc8 {[%clk 0:02:07.5]} 26. Qxc7 {[%clk
0:01:43.6]} 1-0

[Event "*** Titled Tuesday Blitz"]
[Site "Chess.com"]
[Date "2020.04.21"]
[Round "2"]
[White "Quiet_Desperation"]
[Black "emperor87"]
[Result "0-1"]
[WhiteElo "1948"]
[BlackElo "2619"]
[TimeControl "180+1"]
[EndTime "10:14:01 PDT"]
[Termination "emperor87 won by resignation"]

1. e4 {[%clk 0:02:47.8]} 1... c5 {[%clk 0:02:59.2]} 2. Nf3 {[%clk 0:02:46.8]}
2... e6 {[%clk 0:02:59.4]} 3. d4 {[%clk 0:02:47.1]} 3... cxd4 {[%clk 0:02:59.3]}
4. Nxd4 {[%clk 0:02:48]} 4... a6 {[%clk 0:02:59.4]} 5. Nc3 {[%clk 0:02:47.6]}
5... Nc6 {[%clk 0:02:59.4]} 6. Be3 {[%clk 0:02:46.3]} 6... d6 {[%clk 0:02:59.6]}
7. Nb3 {[%clk 0:02:45.8]} 7... Nf6 {[%clk 0:02:59.4]} 8. Bd3 {[%clk 0:02:46.1]}
8... Be7 {[%clk 0:02:58.9]} 9. O-O {[%clk 0:02:46.3]} 9... O-O {[%clk 0:02:59]}
10. f4 {[%clk 0:02:46.6]} 10... b5 {[%clk 0:02:58.8]} 11. a3 {[%clk 0:02:46.7]}
11... Bb7 {[%clk 0:02:58.8]} 12. Kh1 {[%clk 0:02:47.3]} 12... Rc8 {[%clk
0:02:57]} 13. Rf3 {[%clk 0:02:47.3]} 13... e5 {[%clk 0:02:54.8]} 14. Rh3 {[%clk
0:02:44.5]} 14... exf4 {[%clk 0:02:50.7]} 15. Bxf4 {[%clk 0:02:42.2]} 15... Ne5
{[%clk 0:02:50.6]} 16. Nd5 {[%clk 0:02:40.4]} 16... Nxd5 {[%clk 0:02:48.4]} 17.
exd5 {[%clk 0:02:40.2]} 17... g6 {[%clk 0:02:48.7]} 18. Bh6 {[%clk 0:02:23.6]}
18... Re8 {[%clk 0:02:47.5]} 19. Qd2 {[%clk 0:02:21.1]} 19... Bf6 {[%clk
0:02:47.4]} 20. Rf1 {[%clk 0:02:20.6]} 20... Qe7 {[%clk 0:02:41.7]} 21. Be2
{[%clk 0:02:07.4]} 21... Bh8 {[%clk 0:02:25.9]} 22. Nd4 {[%clk 0:02:04.3]} 22...
Bxd5 {[%clk 0:02:20.5]} 23. Nf5 {[%clk 0:01:56.2]} 23... Qe6 {[%clk 0:02:19.9]}
24. Qg5 {[%clk 0:01:38.1]} 24... Rxc2 {[%clk 0:02:15.5]} 25. Nd4 {[%clk
0:01:18.2]} 25... Qxh3 {[%clk 0:02:12.4]} 0-1